lending/lending_fUSD_20251016
["ID","MTS","AMOUNT","RATE_DAILY","PERIOD"]
[391368427,1760579437451,-1628.45488529,0.0002504,2]
[391368428,1760579437462,-286.046,0.00025776,2]
[391368429,1760579437471,-162.79,0.00026357,2]
[391368430,1760579437481,-2403.75571796,0.00026387,2]
[391368431,1760579437493,-1814.83524926,0.00026387,2]
[391368432,1760579437506,-7434.56270333,0.00026387,2]
[391368433,1760579437518,-273.76935254,0.00026387,2]
[391368434,1760579437530,-9519.62534888,0.00026387,2]
[391368435,1760579437542,-13750.17129402,0.00026387,2]
[391368436,1760579437553,-261.52156641,0.00026387,2]
[391368437,1760579437564,-628.73244732,0.00026387,2]
[391368438,1760579437575,-995.07176935,0.00026387,2]
[391368439,1760579437587,-29938.15864569,0.00026387,2]
[391368440,1760579437596,-300.0,0.00026387,30]
[391368441,1760579437605,-300.0,0.00026387,30]
[391368442,1760579437614,-300.0,0.00026387,30]
[391368443,1760579437624,-300.0,0.00026387,30]
[391368444,1760579437634,-300.0,0.00026387,30]
[391368445,1760579437643,-300.0,0.00026387,30]
[391368446,1760579437652,-202.51347,0.00026387,30]
[391368447,1760579437661,-12377.8489594,0.00026387,2]
[391368448,1760579437671,-4489.28277264,0.00026388,2]
[391368449,1760579437680,-15032.73410754,0.00026389,2]
[391368450,1760579437690,-26700.5260676,0.0002639,3]
[391368451,1760579437699,-21395.4260444,0.00026392,3]
[391368452,1760579437709,-27841.7084,0.000264,2]
[391368453,1760579437718,-475.49624517,0.000264,3]
[391368455,1760579437728,-2003.93,0.000264,7]
[391368457,1760579437737,-18610.92646224,0.000264,2]
[391368459,1760579437749,-1300.0,0.000264,2]
[391368461,1760579437761,-4712.62579405,0.000264,2]
[391368686,1760579440082,-22534.2875116,0.000264,2]
[391368688,1760579440091,-21395.4260444,0.00026402,3]
[391368690,1760579440100,-26700.5260676,0.00026402,3]
[391368692,1760579440109,-3607.82358269,0.00026402,2]
[391368694,1760579440118,-150.0,0.00026412,2]
[391368696,1760579440127,-827.06,0.00026412,2]
[391368698,1760579440136,-42790.8520888,0.00026412,3]
[391368700,1760579440144,-26700.5260676,0.00026412,3]
[391368702,1760579440154,-150.84,0.00026412,2]
[391368704,1760579440165,-169.89,0.00026412,2]
[391368706,1760579440175,-151.23,0.00026412,2]
[391368708,1760579440185,-826.58,0.00026412,2]
[391368710,1760579440195,-150.0,0.00026412,2]
[391368712,1760579440204,-3607.82358269,0.00026412,2]
[391368714,1760579440215,-151.0,0.00026414,5]
[391368716,1760579440225,-2244.64138647,0.00026421,2]
[391368717,1760579440235,-3401.4880518,0.00026422,2]
[391368719,1760579440245,-151.0,0.00026422,2]
[391368722,1760579440255,-151.0,0.00026422,2]
[391368723,1760579440265,-4489.28277264,0.00026424,2]
[391368725,1760579440278,-5125.8441452,0.00026426,2]
[391368727,1760579440287,-3607.82358269,0.00026427,2]
[391368729,1760579440296,-2562.92207267,0.00026429,2]
[391368731,1760579440305,-147943.87523532,0.00026432,2]
[391368734,1760579440316,-58274.44676605,0.00026432,2]
[391368736,1760579440326,-275.27013839,0.00026432,2]
[391368738,1760579440334,-26518.12686592,0.00026434,2]
[391368740,1760579440343,-5125.8441452,0.00026436,2]
[391368742,1760579440352,-864.43128331,0.00026438,2]
[391368744,1760579440362,-13350.2630338,0.00026443,3]
[391368745,1760579440371,-33197.38332001,0.00026446,2]
[391368747,1760579440380,-11446.21781029,0.00026451,2]
[391368749,1760579440389,-13350.2630338,0.00026451,3]
[391368751,1760579440398,-21395.4260444,0.00026452,3]
[391368753,1760579440408,-63973.80278202,0.00026453,2]
[391368756,1760579440431,-1059.17891034,0.00026453,2]
[391368758,1760579440442,-2244.64138647,0.00026454,2]
[391368760,1760579440451,-15032.73410754,0.0002646,2]
[391368762,1760579440462,-21395.4260444,0.0002646,3]
[391368764,1760579440472,-13350.2630338,0.00026463,3]
[391368766,1760579440482,-7215.64716522,0.00026464,2]
[391368767,1760579440492,-4489.28277264,0.00026466,2]
[391368769,1760579440501,-903.25071931,0.0002647,2]
[391368771,1760579440511,-152.622124,0.0002647,7]
[391368773,1760579440520,-151.0,0.0002647,7]
[391368775,1760579440530,-151.0,0.0002647,7]
[391368776,1760579440539,-152.167279,0.0002647,7]
[391368778,1760579440548,-151.0,0.0002647,7]
[391368779,1760579440558,-151.0,0.0002647,7]
[391368780,1760579440568,-257.788045,0.0002647,7]
[391368781,1760579440577,-283.398554,0.0002647,7]
[391368782,1760579440587,-151.0,0.0002647,2]
[391368783,1760579440595,-283.398554,0.0002647,7]
[391368784,1760579440605,-283.398554,0.0002647,7]
[391368785,1760579440615,-237.088274,0.0002647,7]
[391368786,1760579440625,-283.398554,0.0002647,7]
[391368787,1760579440634,-151.0,0.0002647,7]
[391368788,1760579440643,-237.088274,0.0002647,7]
[391368789,1760579440652,-237.088274,0.0002647,7]
[391368790,1760579440661,-237.088274,0.0002647,7]
[391368791,1760579440670,-153.032016,0.0002647,7]
[391368792,1760579440680,-151.0,0.0002647,7]
[391368793,1760579440689,-152.005824,0.0002647,7]
[391368794,1760579440698,-151.0,0.0002647,7]
[391368795,1760579440708,-152.970246,0.0002647,7]
[391368796,1760579440717,-151.91797,0.0002647,7]
[391368797,1760579440726,-156.753915,0.0002647,7]
[391368798,1760579440736,-153.774158,0.0002647,7]
[391368799,1760579440745,-151.0,0.0002647,7]
[391368800,1760579440755,-152.626802,0.0002647,7]
[391368801,1760579440764,-157.314239,0.0002647,7]
[391368802,1760579440773,-151.0,0.0002647,7]
[391368803,1760579440782,-151.0,0.0002647,7]
[391368804,1760579440792,-151.0,0.0002647,7]
[391368805,1760579440802,-21395.4260444,0.0002647,3]
[391368806,1760579440811,-26700.5260676,0.0002647,3]
[391368807,1760579440821,-5721.61374344,0.00026471,2]
[391368808,1760579440832,-307.0936586,0.00026471,2]
[391368809,1760579440844,-2226.1219989,0.00026471,2]
[391368810,1760579440870,-15366.72385975,0.00026471,2]
[391368811,1760579440881,-628.21902614,0.00026471,2]
[391368812,1760579440891,-81515.57681063,0.00026472,2]
[391368813,1760579440900,-2562.92207267,0.00026472,2]
[391368814,1760579440910,-500.17966532,0.00026473,2]
[391368815,1760579440919,-500.0,0.00026473,2]
[391368816,1760579440929,-70432.68657488,0.00026475,2]
[391368817,1760579440940,-1034.355,0.00026475,2]
[391368819,1760579442730,-2891.07515856,0.00026475,2]
[391368820,1760579442944,-392.2919,0.00026475,2]
[391368824,1760579478818,160.15532,0.0002739,120]
[391368825,1760579487929,318.29,0.00027397,120]
[391368870,1760579811826,98630.0,0.00027,120]
[391369246,1760580098564,1191.93,0.00027397,120]
[391369258,1760580164623,1600.0,0.00025,120]
[391369304,1760580633760,-179.49143104,0.00018,2]
[391369305,1760580633771,-150.0,0.00018,2]
[391369306,1760580633779,-250.0,0.00018006,2]
[391369307,1760580633786,-179.49143104,0.000182,2]
[391369308,1760580633794,-179.49143104,0.000184,2]
[391369309,1760580633803,-151.0,0.00019178,2]
[391369310,1760580633818,-183.98771662,0.000197,2]
[391369311,1760580633828,-308.2046035,0.000198,2]
[391369312,1760580633838,-250.0,0.000198,2]
[391369313,1760580633847,-250.0,0.000198,2]
[391369314,1760580633857,-188.61,0.00019972,2]
[391369315,1760580633867,-455.0,0.00020276,2]
[391369316,1760580633877,-300.0,0.00020276,2]
[391369317,1760580633887,-1200.0,0.00020276,2]
[391369318,1760580633896,-917.88330534,0.00020277,2]
[391369319,1760580633908,-3365.3,0.00020277,2]
[391369320,1760580633917,-526.64,0.00020277,2]
[391369321,1760580633928,-9999.99,0.00020277,2]
[391369322,1760580633937,-475.49624517,0.00021793,2]
[391369323,1760580633947,-420.0,0.00022073,2]
[391369324,1760580633958,-166.66,0.00022543,30]
[391369325,1760580633968,-151.0,0.00022744,2]
[391369326,1760580633978,-166.66,0.00023017,30]
[391369327,1760580633988,-666.0,0.00023402,3]
[391369328,1760580633998,-166.66,0.00023492,30]
[391369329,1760580634008,-1000.0,0.00023723,2]
[391369330,1760580634017,-1896.17,0.00023729,30]
[391369331,1760580634027,-917.26039614,0.00023855,2]
[391369332,1760580634041,-166.66,0.00023966,30]
[391369333,1760580634051,-292.0,0.00024028,2]
[391369334,1760580634063,-166.66,0.00024441,30]
[391369335,1760580634073,-1000.0,0.00024613,2]
[391369336,1760580634083,-695.07,0.00024614,2]
[391369337,1760580634093,-695.07,0.00024614,2]
[391369338,1760580634103,-694.29,0.00024614,2]
[391369339,1760580634113,-1000.0,0.00024658,2]
[391369340,1760580634123,-1027.86511059,0.00024753,2]
[391369341,1760580634132,-600.0,0.00024912,2]
[391369342,1760580634142,-218.69614647,0.00024912,2]
[391369343,1760580634152,-166.66,0.00024915,30]
[391369344,1760580634161,-211.14,0.00024927,2]
[391369345,1760580634171,-500.0,0.00024932,2]
[391369346,1760580634181,-2751.0,0.00024934,2]
[391369347,1760580634191,-1000.0,0.00024961,2]
[391369348,1760580634202,-150.0,0.00025,2]
[391369349,1760580634211,-150.0,0.00025,2]
[391369350,1760580634221,-150.0,0.00025,2]
[391369351,1760580634230,-150.0,0.00025,2]
[391369352,1760580634240,-150.0,0.00025,2]
[391369353,1760580634249,-150.0,0.00025,2]
[391369354,1760580634259,-1008.45,0.00025,2]
[391369355,1760580634269,-636.69,0.00025,2]
[391369356,1760580634280,-2064.727,0.00025045,2]
[391369357,1760580634290,-3417.189,0.00025045,2]
[391369358,1760580634300,-742.852,0.00025045,2]
[391369359,1760580634312,-1270.333,0.00025045,2]
[391369360,1760580634322,-1598.02,0.00025045,2]
[391369361,1760580634331,-609.89,0.00025045,2]
[391369362,1760580634341,-1317.997,0.00025045,2]
[391369363,1760580634350,-573.04,0.00025045,2]
[391369364,1760580634360,-821.0,0.00025045,2]
[391369365,1760580634370,-4142.305,0.00025045,2]
[391369366,1760580634379,-1188.562,0.00025045,2]
[391369367,1760580634388,-18696.50116927,0.00025105,2]
[391369368,1760580634398,-304.90829492,0.00025106,49]
[391369369,1760580634407,-296.94724852,0.00025139,2]
[391369370,1760580634417,-1000.0,0.00025139,2]
[391369371,1760580634426,-1000.0,0.00025139,2]
[391369372,1760580634436,-1000.0,0.00025139,2]
[391369373,1760580634446,-1000.0,0.00025139,2]
[391369374,1760580634455,-1000.0,0.00025139,2]
[391369375,1760580634464,-1000.0,0.00025139,2]
[391369376,1760580634473,-1000.0,0.00025139,2]
[391369377,1760580634482,-1000.0,0.00025139,2]
[391369378,1760580634492,-1000.0,0.00025139,2]
[391369379,1760580634501,-152.44227839,0.00025139,2]
[391369380,1760580634511,-2000.0,0.00025139,2]
[391369381,1760580634520,-1000.0,0.00025139,2]
[391369382,1760580634530,-2000.0,0.00025139,2]
[391369383,1760580634539,-1000.0,0.00025139,2]
[391369384,1760580634554,-2113.19260932,0.00025139,2]
[391369385,1760580634567,-1000.0,0.00025139,2]
[391369386,1760580634577,-1000.0,0.00025139,2]
[391369387,1760580634588,-9552.16786547,0.00025139,2]
[391369388,1760580634597,-1000.0,0.00025139,2]
[391369389,1760580634611,-500.0,0.00025139,2]
[391369390,1760580634625,-1000.0,0.00025139,2]
[391369391,1760580634635,-567.21161999,0.00025139,2]
[391369392,1760580634645,-1000.0,0.00025139,2]
[391369393,1760580634655,-1000.0,0.00025139,2]
[391369394,1760580634664,-963.20280604,0.00025139,2]
[391369395,1760580634674,-695.96744475,0.00025139,2]
[391369396,1760580634684,-550.6304507,0.00025139,2]
[391369397,1760580634694,-500.0,0.00025139,2]
[391369398,1760580634703,-500.0,0.00025139,2]
[391369399,1760580634713,-500.0,0.00025139,2]
[391369400,1760580634723,-500.0,0.00025139,2]
[391369401,1760580634732,-152.21356696,0.00025139,2]
[391369402,1760580634741,-500.0,0.00025139,2]
[391369403,1760580634751,-2000.0,0.00025139,2]
[391369404,1760580634760,-500.0,0.00025139,2]
[391369405,1760580634770,-2000.0,0.00025139,2]
[391369406,1760580634779,-500.0,0.00025139,2]
[391369407,1760580634788,-2000.0,0.00025139,2]
[391369408,1760580634799,-500.0,0.00025139,2]
[391369409,1760580634808,-2000.0,0.00025139,2]
[391369410,1760580634818,-495.35246857,0.00025139,2]
[391369411,1760580634827,-2000.0,0.00025139,2]
[391369412,1760580634837,-500.0,0.00025139,2]
[391369413,1760580634847,-500.0,0.00025139,2]
[391369414,1760580634856,-152.47924697,0.00025139,2]
[391369415,1760580634866,-500.0,0.00025139,2]
[391369416,1760580634875,-500.0,0.00025139,2]
[391369417,1760580634884,-2000.0,0.00025139,2]
[391369418,1760580634894,-500.0,0.00025139,2]
[391369419,1760580634904,-154.00563516,0.00025139,2]
[391369420,1760580634914,-1077.28334276,0.00025139,2]
[391369421,1760580634923,-1000.0,0.00025139,2]
[391369422,1760580634932,-500.0,0.00025139,2]
[391369423,1760580634942,-1000.0,0.00025139,2]
[391369424,1760580634952,-220.71097196,0.00025139,2]
[391369425,1760580634962,-1000.0,0.00025139,2]
[391369426,1760580634972,-277.35679052,0.00025139,2]
[391369427,1760580634981,-1000.0,0.00025139,2]
[391369428,1760580634994,-1000.0,0.00025139,2]
[391369429,1760580635004,-1000.0,0.00025139,2]
[391369430,1760580635014,-250.0,0.00025139,2]
[391369431,1760580635023,-1000.0,0.00025139,2]
[391369432,1760580635033,-341.68575055,0.00025139,2]
[391369433,1760580635043,-1000.0,0.00025139,2]
[391369434,1760580635053,-1000.0,0.00025139,2]
[391369435,1760580635065,-1000.0,0.00025139,2]
[391369436,1760580635075,-617.86639973,0.00025139,2]
[391369437,1760580635085,-322.6107,0.00025139,2]
[391369438,1760580635094,-301.10502822,0.00025139,2]
[391369439,1760580635104,-250.0,0.00025139,2]
[391369440,1760580635114,-250.0,0.00025139,2]
[391369441,1760580635124,-721.12765535,0.00025139,2]
[391369442,1760580635133,-250.0,0.00025139,2]
[391369443,1760580635143,-258.08356152,0.00025139,2]
[391369444,1760580635154,-500.0,0.00025173,2]
[391369445,1760580635164,-500.0,0.00025173,2]
[391369446,1760580635173,-500.0,0.00025173,2]
[391369447,1760580635183,-742.0,0.00025187,2]
[391369448,1760580635193,-742.0,0.00025187,2]
[391369449,1760580635202,-742.0,0.00025187,2]
[391369450,1760580635211,-742.0,0.00025187,2]
[391369451,1760580635221,-742.0,0.00025187,2]
[391369452,1760580635230,-742.0,0.00025187,2]
[391369453,1760580635240,-742.0,0.00025187,2]
[391369454,1760580635249,-742.0,0.00025187,2]
[391369455,1760580635258,-742.0,0.00025187,2]
[391369456,1760580635268,-742.0,0.00025187,2]
[391369457,1760580635277,-742.0,0.00025187,2]
[391369458,1760580635286,-742.0,0.00025187,2]
[391369459,1760580635296,-742.0,0.00025187,2]
[391369460,1760580635305,-1025.0,0.00025188,2]
[391369461,1760580635317,-1025.0,0.00025188,2]
[391369462,1760580635327,-1025.0,0.00025188,2]
[391369463,1760580635336,-1025.0,0.00025188,2]
[391369464,1760580635345,-1025.0,0.00025188,2]
[391369465,1760580635355,-1025.0,0.00025188,2]
[391369466,1760580635364,-1025.0,0.00025188,2]
[391369467,1760580635374,-1025.0,0.00025188,2]
[391369468,1760580635386,-1025.0,0.00025188,2]
[391369469,1760580635395,-1025.0,0.00025188,2]
[391369470,1760580635407,-1025.0,0.00025188,2]
[391369471,1760580635416,-1025.0,0.00025188,2]
[391369472,1760580635426,-408.0,0.00025191,2]
[391369473,1760580635436,-408.0,0.00025191,2]
[391369474,1760580635445,-408.0,0.00025191,2]
[391369475,1760580635455,-408.0,0.00025191,2]
[391369476,1760580635464,-408.0,0.00025191,2]
[391369477,1760580635474,-408.0,0.00025191,2]
[391369478,1760580635483,-408.0,0.00025191,2]
[391369479,1760580635493,-408.0,0.00025191,2]
[391369480,1760580635503,-199.0,0.00025192,2]
[391369481,1760580635512,-199.0,0.00025192,2]
[391369482,1760580635522,-199.0,0.00025192,2]
[391369483,1760580635531,-199.0,0.00025192,2]
[391369484,1760580635541,-199.0,0.00025192,2]
[391369485,1760580635555,-199.0,0.00025192,2]
[391369486,1760580635567,-199.0,0.00025192,2]
[391369487,1760580635577,-199.0,0.00025192,2]
[391369488,1760580635587,-199.0,0.00025192,2]
[391369489,1760580635597,-199.0,0.00025192,2]
[391369490,1760580635607,-199.0,0.00025192,2]
[391369491,1760580635617,-199.0,0.00025192,2]
[391369492,1760580635629,-199.0,0.00025192,2]
[391369493,1760580635638,-9905.5980765,0.00025194,2]
[391369494,1760580635649,-10272.10520533,0.00025249,2]
[391369495,1760580635658,-500.0,0.00025273,2]
[391369496,1760580635668,-500.0,0.00025273,2]
[391369497,1760580635678,-500.0,0.00025273,2]
[391369498,1760580635688,-500.0,0.00025273,2]
[391369499,1760580635698,-10652.17309792,0.00025304,2]
[391369500,1760580635708,-383.152,0.00025349,9]
[391369501,1760580635718,-11046.30350255,0.00025359,2]
[391369502,1760580635727,-171.0020149,0.00025369,3]
[391369503,1760580635737,-7159.32173058,0.00025414,2]
[391369504,1760580635747,-600.0,0.0002546,2]
[391369505,1760580635757,-524.91,0.00025488,2]
[391369506,1760580635768,-1008.45,0.000255,2]
[391369507,1760580635781,-75.64391284,0.00025503,2]
[391369508,1760580635802,-924.35608716,0.00025503,2]
[391369509,1760580635815,-532.15,0.00025528,2]
[391369510,1760580635824,-151.0,0.0002555,4]
[391369511,1760580635834,-18696.50116926,0.00025604,2]
[391369512,1760580635843,-150.0,0.00025678,2]
[391369513,1760580635854,-500.0,0.00025702,2]
[391369514,1760580635864,-500.0,0.00025702,2]
[391369515,1760580635872,-500.0,0.00025702,2]
[391369516,1760580635881,-1915.7450378,0.00025704,2]
[391369517,1760580635890,-1000.0,0.00025721,2]
[391369518,1760580635899,-609.31961018,0.00025721,2]
[391369519,1760580635909,-1000.0,0.00025721,2]
[391369520,1760580635918,-1581.0,0.00025763,2]
[391369521,1760580635929,-1000.0,0.000258,3]
[391369522,1760580635939,-1000.0,0.000258,4]
[391369523,1760580635949,-1000.0,0.000258,5]
[391369524,1760580635959,-503.0663356,0.00025821,2]
[391369525,1760580635968,-1000.0,0.00025821,2]
[391369526,1760580635979,-1000.0,0.00025821,2]
[391369527,1760580635989,-1000.0,0.00025821,2]
[391369528,1760580635999,-1330.0,0.00025989,2]
[391369529,1760580636010,-2000.0,0.00026,2]
[391369530,1760580636020,-24052.26,0.00026,2]
[391369531,1760580636030,-1008.45,0.00026,30]
[391369532,1760580636040,-600.0,0.00026008,2]
[391369533,1760580636048,-853.0,0.00026096,2]
[391369534,1760580636060,-18696.50116926,0.00026104,2]
[391369535,1760580636070,-1167.29211581,0.00026122,2]
[391369536,1760580636080,-853.0,0.00026222,2]
[391369537,1760580636089,-17686.3953246,0.00026239,3]
[391369538,1760580636099,-150.0,0.00026249,2]
[391369539,1760580636109,-150.0,0.00026249,2]
[391369540,1760580636118,-500.0,0.00026249,2]
[391369541,1760580636128,-150.0,0.00026249,2]
[391369542,1760580636137,-150.0,0.00026249,2]
[391369543,1760580636147,-150.0,0.00026249,2]
[391369544,1760580636156,-500.0,0.00026249,2]
[391369545,1760580636166,-500.0,0.00026249,2]
[391369546,1760580636175,-150.0,0.00026249,2]
[391369547,1760580636184,-256.66971048,0.00026249,2]
[391369548,1760580636193,-500.0,0.00026249,2]
[391369549,1760580636203,-150.0,0.00026249,2]
[391369550,1760580636212,-716.0,0.00026249,2]
[391369551,1760580636222,-500.0,0.00026249,2]
[391369552,1760580636232,-150.0,0.00026249,2]
[391369553,1760580636241,-282.28889251,0.00026268,2]
[391369554,1760580636250,-1269.35185077,0.00026268,2]
[391369555,1760580636259,-200.0,0.00026275,2]
[391369556,1760580636268,-1000.0,0.0002628,7]
[391369557,1760580636278,-1000.0,0.0002628,8]
[391369558,1760580636288,-1002.0,0.0002628,10]
[391369559,1760580636299,-200.0,0.00026286,2]
[391369560,1760580636308,-1581.0,0.00026287,2]
[391369561,1760580636318,-171.37841709,0.0002629,2]
[391369562,1760580636328,-300.0,0.00026296,2]
[391369563,1760580636337,-578.45950036,0.00026301,13]
[391369564,1760580636347,-181.75197015,0.00026304,2]
[391369565,1760580636356,-151.89863775,0.00026304,2]
[391369566,1760580636366,-500.0,0.00026304,2]
[391369567,1760580636379,-257.34975452,0.00026304,2]
[391369568,1760580636397,-150.0,0.00026304,2]
[391369569,1760580636416,-150.0,0.00026304,2]
[391369570,1760580636429,-500.0,0.00026304,2]
[391369571,1760580636439,-500.0,0.00026304,2]
[391369572,1760580636454,-150.0,0.00026304,2]
[391369573,1760580636466,-500.0,0.00026304,2]
[391369574,1760580636476,-716.0,0.00026304,2]
[391369575,1760580636487,-500.0,0.00026304,2]
[391369576,1760580636497,-150.0,0.00026304,2]
[391369577,1760580636507,-9652.40809516,0.00026324,2]
[391369578,1760580636517,-1581.0,0.00026344,7]
[391369579,1760580636526,-1365.57515961,0.00026345,2]
[391369580,1760580636536,-1889.32481638,0.0002635,2]
[391369581,1760580636546,-32725.2195801,0.00026355,2]
[391369582,1760580636564,-1795.01797495,0.00026355,2]
[391369583,1760580637151,-239.12531805,0.00026358,2]
[391369587,1760580637740,-906.218,0.00025045,2]
[391369588,1760580637750,-150.0,0.00026249,2]
[391369589,1760580637759,-151.14944807,0.00026249,2]
[391369590,1760580637769,-150.77597293,0.00026249,2]
[391369591,1760580637778,-202.01765236,0.00026249,2]
[391369592,1760580637787,-150.0,0.00026304,2]
[391369593,1760580637796,-6058.70444187,0.00026358,2]
[391369596,1760580639693,-500.0,0.00026249,2]
[391369597,1760580639703,-284.139,0.00026304,2]
[391369598,1760580639715,-215.861,0.00026304,2]
[391369599,1760580639725,-28004.08615202,0.00026358,2]
[391369600,1760580639734,-13667.8502124,0.00026359,2]
[391369601,1760580639743,-500.0,0.00026359,2]
[391369602,1760580639753,-150.0,0.00026359,2]
[391369603,1760580639762,-500.0,0.00026359,2]
[391369604,1760580639771,-500.0,0.00026359,2]
[391369605,1760580639780,-153.55851001,0.00026359,2]
[391369606,1760580639789,-172.65498518,0.00026359,2]
[391369607,1760580639799,-716.0,0.00026359,2]
[391369608,1760580639808,-500.0,0.00026359,2]
[391369609,1760580639822,-202.83233269,0.00026359,2]
[391369610,1760580639832,-500.0,0.00026359,2]
[391369611,1760580639841,-841.82550277,0.0002636,2]
[391369612,1760580639851,-841.82550277,0.00026362,2]
[391369613,1760580639861,-304.58922137,0.00026368,2]
[391369614,1760580639870,-1500.0,0.00026368,2]
[391369615,1760580639881,-1500.0,0.00026368,2]
[391369616,1760580639890,-17686.3953246,0.0002637,3]
[391369617,1760580639899,-408.09,0.00026372,2]
[391369618,1760580639909,-176.0,0.00026372,2]
[391369619,1760580639918,-176.0,0.00026372,2]
[391369620,1760580639928,-176.0,0.00026372,2]
[391369621,1760580639937,-176.0,0.00026372,2]
[391369622,1760580639947,-176.0,0.00026372,2]
[391369623,1760580639957,-176.0,0.00026372,2]
[391369624,1760580639966,-176.0,0.00026372,2]
[391369625,1760580639977,-176.0,0.00026372,2]
[391369626,1760580639987,-176.0,0.00026372,2]
[391369627,1760580639997,-176.0,0.00026372,2]
[391369628,1760580640007,-176.0,0.00026372,2]
[391369629,1760580640017,-176.0,0.00026372,2]
[391369630,1760580640026,-176.0,0.00026372,2]
[391369631,1760580640036,-176.0,0.00026372,2]
[391369632,1760580640045,-176.0,0.00026372,2]
[391369633,1760580640055,-176.0,0.00026372,2]
[391369634,1760580640065,-176.0,0.00026372,2]
[391369635,1760580640074,-176.0,0.00026372,2]
[391369636,1760580640084,-176.0,0.00026372,2]
[391369637,1760580640093,-155.97,0.00026372,2]
[391369638,1760580640103,-17686.3953246,0.00026382,3]
[391369639,1760580640113,-1794.04545097,0.00026389,2]
[391369640,1760580640123,-1794.04545097,0.00026389,2]
[391369641,1760580640133,-14229.2952,0.0002639,2]
[391369642,1760580640142,-1000.0,0.0002639,2]
[391369643,1760580640151,-1000.0,0.00026392,2]
[391369644,1760580640162,-1365.57515961,0.00026393,2]
[391369645,1760580640171,-1889.32481638,0.00026396,2]
[391369646,1760580640180,-2678.95117138,0.000264,2]
[391369647,1760580640189,-161.0,0.000264,7]
[391369648,1760580640198,-161.34,0.000264,7]
[391369649,1760580640207,-572.5412,0.000264,2]
[391369650,1760580640218,-34301.91591194,0.00026403,2]
[391369651,1760580640227,-13667.8502124,0.00026412,2]
[391369652,1760580640236,-177.30924167,0.00026413,2]
[391369653,1760580640245,-252.09388572,0.00026413,2]
[391369654,1760580640254,-612.3688728,0.00026413,2]
[391369655,1760580640263,-500.0,0.00026413,2]
[391369656,1760580640273,-716.0,0.00026413,2]
[391369657,1760580640282,-500.0,0.00026413,2]
[391369658,1760580640297,-200.0,0.00026413,2]
[391369659,1760580640307,-5612.37282243,0.0002642,2]
[391369660,1760580640318,-2678.95117138,0.00026421,2]
[391369661,1760580640328,-853.0,0.00026424,7]
[391369662,1760580640338,-5612.37282243,0.00026425,2]
[391369663,1760580640348,-1794.04545097,0.0002643,2]
[391369664,1760580640358,-34520.23755505,0.00026438,2]
[391369665,1760580640368,-276.73258774,0.00026438,2]
[391369666,1760580640378,-150.94504786,0.00026438,2]
[391369667,1760580640387,-1365.57515961,0.00026439,2]
[391369668,1760580640397,-151.0,0.00026443,5]
[391369669,1760580640407,-3018.50806016,0.00026448,2]
[391369670,1760580640416,-2678.95117138,0.00026452,2]
[391369671,1760580640426,-3018.50806016,0.00026456,2]
[391369672,1760580640436,-1889.32481638,0.00026457,2]
[391369673,1760580640445,-17686.3953246,0.00026462,3]
[391369674,1760580640455,-17686.3953246,0.00026463,3]
[391369675,1760580640465,-150.0,0.00026464,2]
[391369676,1760580640474,-150.0,0.00026464,2]
[391369677,1760580640483,-150.0,0.00026464,2]
[391369678,1760580640493,-150.0,0.00026464,2]
[391369679,1760580640502,-150.0,0.00026464,2]
[391369680,1760580640511,-150.0,0.00026464,2]
[391369681,1760580640521,-150.0,0.00026464,2]
[391369682,1760580640530,-300.89,0.00026464,2]
[391369683,1760580640540,-150.0,0.00026464,2]